bitfinex/quotes_ETHUSD_20250110
["timestamp","ask_amount","ask_price","bid_price","bid_amount"]
[1736492733473,3.0,3280.4,3280.0,0.0075]
[1736492734191,3.0485,3280.3,3279.9,0.8059]
[1736492734498,3.0,3280.1,3279.6,0.217]
[1736492734701,2.26555697,3280.2,3279.7,0.09675449]
[1736492734885,2.26555697,3280.2,3279.5,0.0075]
[1736492735087,3.04905,3279.7,3279.6,0.09675449]
[1736492735422,3.6572707,3279.7,3279.2,0.8136]
[1736492735714,3.04905,3279.7,3279.3,0.09367579]
[1736492735920,2.26555697,3279.6,3279.0,0.7909]
[1736492736213,2.26555697,3279.6,3278.7,0.7909]
[1736492736597,2.26555697,3279.6,3278.8,0.10117579]
[1736492736802,3.0,3279.4,3278.8,0.09367579]
[1736492737021,3.0,3279.2,3278.8,0.09367579]
[1736492737314,3.0,3279.2,3278.7,0.7909]
[1736492737496,3.0,3279.2,3278.8,0.09396236]
[1736492737704,3.04953,3279.2,3278.7,0.7909]
[1736492738013,3.04953,3279.2,3278.8,0.09408339]
[1736492738316,3.04972,3279.0,3278.7,0.7909]
[1736492738516,2.26555697,3279.0,3278.8,0.09408339]
[1736492738688,0.7951,3278.9,3278.4,0.7849]
[1736492739012,3.05001,3278.7,3278.4,0.7849]
[1736492739814,3.05001,3278.7,3278.2,0.9877]
[1736492740175,3.0,3278.9,3278.3,0.08860541]
[1736492740499,6.1956,3279.5,3278.6,0.0075]
[1736492740682,8.41925,3279.5,3278.8,0.0075]
[1736492741018,3.0,3279.4,3278.9,0.08879628]
[1736492741376,3.0,3279.4,3279.0,0.8223]
[1736492741575,3.0,3279.6,3279.1,0.0075]
[1736492741824,3.04916,3279.6,3279.1,0.09629628]
[1736492742189,3.09115697,3279.9,3279.2,0.824]
[1736492742190,2.26555697,3279.9,3279.2,0.824]
[1736492742407,2.26555697,3280.2,3279.3,0.86199422]
[1736492742782,3.07125697,3280.5,3279.7,0.0075]
[1736492743083,3.0,3280.2,3279.7,0.0075]
[1736492743277,3.3071257,3280.4,3279.8,0.08846546]
[1736492743525,5.31417697,3280.2,3279.7,0.0075]
[1736492744227,2.26555697,3279.9,3279.1,0.217]
[1736492744526,5.31444697,3279.9,3279.2,0.09596546]
[1736492744777,3.04869,3280.1,3279.3,0.8219]
[1736492745100,3.0,3279.9,3279.3,0.8219]
[1736492745295,3.0,3279.9,3279.4,0.08846546]
[1736492745495,3.04887,3279.9,3279.3,0.8219]
[1736492745684,3.04887,3279.9,3279.4,0.08846546]
[1736492745895,3.04887,3279.9,3279.3,0.8219]
[1736492746134,3.04887,3279.9,3279.4,0.08846546]
[1736492746303,3.04887,3279.9,3279.3,0.8219]
[1736492746504,3.04887,3279.9,3279.4,0.08846546]
[1736492747188,3.02455697,3280.5,3279.7,0.0075]
[1736492747532,3.3508857,3280.4,3279.7,0.0075]
[1736492747736,3.3508857,3280.4,3279.8,0.08846546]
[1736492748023,3.3508857,3280.4,3279.9,0.0075]
[1736492748438,3.3508857,3280.4,3280.0,0.08846546]
[1736492748789,3.0,3280.2,3280.0,0.08846546]
[1736492748988,3.0,3280.2,3279.9,0.0075]
[1736492748989,0.604851,3280.1,3279.8,0.7957]
[1736492749403,0.604851,3280.1,3279.9,0.08846546]
[1736492749835,0.604851,3280.1,3279.8,0.7957]
[1736492750246,0.604851,3280.1,3279.9,0.08796942]
[1736492750592,0.604851,3280.1,3279.8,0.7957]
[1736492750929,0.604851,3280.1,3279.9,0.08796942]
[1736492751139,0.002,3280.0,3279.8,0.7957]
[1736492751346,0.002,3280.0,3279.9,0.08796942]
[1736492751835,0.002,3280.0,3279.3,0.015]
[1736492752134,0.002,3280.0,3279.5,0.0075]
[1736492752514,0.002,3280.0,3279.6,0.08746702]
[1736492760447,0.002,3280.0,3279.7,0.816]
[1736492760641,0.002,3280.0,3279.7,0.84648887]
[1736492760943,0.002,3280.0,3279.9,0.0225]
[1736492761128,0.002,3280.0,3279.9,0.2395]
[1736492761335,0.002,3280.0,3279.9,0.32697976]
[1736492762776,0.002,3280.0,3279.9,0.30447976]
[1736492764097,0.7831,3280.0,3279.9,0.30447976]
[1736492764296,1.16627,3280.0,3279.5,0.7634]
[1736492764608,1.16627,3280.0,3279.7,0.0075]
[1736492764609,0.002,3280.0,3279.7,0.0075]
[1736492765262,0.002,3280.0,3279.8,0.08747976]
[1736492765662,0.002,3280.0,3279.7,0.0075]
[1736492765864,0.002,3280.0,3279.9,0.08747976]
[1736492766102,0.002,3280.0,3279.7,0.0075]
[1736492766251,3.355869,3280.0,3279.5,0.7634]
[1736492766447,3.355869,3280.0,3279.1,0.0075]
[1736492766448,3.07035697,3279.9,3279.2,0.8031]
[1736492766686,3.04898,3279.8,3279.6,0.08747976]
[1736492766992,3.04898,3279.8,3279.3,0.0075]
[1736492767350,3.07035697,3279.9,3279.4,0.08744797]
[1736492767551,4.183049,3280.0,3279.4,0.08744797]
[1736492768193,3.4183049,3279.9,3279.4,0.08744797]
[1736492768698,3.4672049,3279.9,3279.4,0.08744797]
[1736492769295,3.4672049,3279.9,3279.3,0.0075]
[1736492769500,3.0,3279.7,3279.2,0.217]
[1736492769676,3.04924,3279.5,3279.4,0.08744797]
[1736492769881,3.04924,3279.5,3279.3,0.08763872]
[1736492770085,3.04924,3279.5,3278.8,0.9917]
[1736492770252,3.04924,3279.5,3279.4,0.08763872]
[1736492770754,3.04924,3279.5,3278.9,0.0075]
[1736492770981,0.8288,3279.6,3279.0,0.08763872]
[1736492771366,3.87799,3279.6,3279.0,0.08763872]
[1736492772203,3.04925,3279.5,3279.0,0.08763872]
[1736492772702,3.0,3279.5,3279.0,0.08763872]
[1736492772903,5.26555697,3279.3,3279.0,0.08763872]
[1736492773203,5.26555697,3279.3,3278.7,0.217]
[1736492773204,3.04961,3279.1,3278.7,0.217]
[1736492773591,3.04961,3279.1,3278.8,0.08809018]
[1736492773901,3.0498,3278.9,3278.8,0.08809018]
[1736492774104,5.26555697,3279.0,3278.2,1.0288]
[1736492774312,6.04976,3279.0,3278.2,1.0288]
[1736492774506,6.04976,3279.0,3278.3,0.08809018]
[1736492774879,6.04976,3279.0,3278.4,0.0075]
[1736492775407,6.04976,3279.0,3278.5,0.08809018]
[1736492779510,0.8332,3279.2,3278.5,0.08809018]
[1736492779699,3.04983,3278.9,3278.5,0.08809018]
[1736492781499,3.04991,3278.8,3278.5,0.08809018]
[1736492781887,3.05003,3278.7,3278.5,0.08809018]
[1736492782089,3.82433,3278.7,3278.5,0.08809018]
[1736492782298,3.82433,3278.7,3278.2,0.8118]
[1736492782488,3.82433,3278.7,3278.6,0.08844638]
[1736492782717,9.47231997,3278.7,3278.6,0.08844638]
[1736492782901,6.42228997,3278.7,3277.9,1.0035]
[1736492783105,3.05046,3278.2,3277.6,0.217]
[1736492783291,3.05046,3278.2,3277.7,0.0075]
[1736492783491,3.05036,3278.3,3277.8,0.7972]
[1736492783932,3.05036,3278.3,3277.9,0.08844638]
[1736492784100,6.05019,3278.5,3277.9,0.08844638]
[1736492784299,3.0,3278.3,3277.8,0.7972]
[1736492784942,3.0,3278.3,3277.9,0.08844638]
[1736492785305,3.0,3278.3,3277.8,0.7972]
[1736492785929,3.0,3278.3,3277.9,0.08844638]
[1736492788031,6.05039,3278.3,3277.9,0.08844638]
[1736492788339,3.05046,3278.2,3277.9,0.08844638]
[1736492788506,3.05046,3278.2,3277.8,0.7972]
[1736492788920,3.05046,3278.2,3277.9,0.08915893]
[1736492789337,3.05046,3278.2,3277.8,0.7972]
[1736492789709,3.05046,3278.2,3277.9,0.08915893]
[1736492790035,3.0,3278.3,3277.8,0.7972]
[1736492790397,3.0,3278.3,3277.9,0.08915893]
[1736492791120,6.05041,3278.3,3277.9,0.08915893]
[1736492791642,6.05041,3278.3,3277.8,0.7972]
[1736492791997,6.05041,3278.3,3277.9,0.08915893]
[1736492792344,6.05041,3278.3,3277.8,0.7972]
[1736492792835,6.05041,3278.3,3277.9,0.08915893]
[1736492793252,0.7819,3278.2,3277.8,0.7972]
[1736492793754,0.7819,3278.2,3277.9,0.08957889]
[1736492793948,6.05041,3278.3,3277.9,0.08957889]
[1736492794154,6.05041,3278.3,3277.8,0.7972]
[1736492794542,6.05041,3278.3,3277.9,0.08957889]
[1736492794931,6.05041,3278.3,3277.8,0.7972]
[1736492795552,6.05041,3278.3,3277.9,0.08957889]
[1736492795920,3.05047,3278.2,3277.8,0.7972]
[1736492796240,3.05047,3278.2,3277.9,0.08962981]
[1736492796856,3.05047,3278.2,3277.8,0.7972]
[1736492797151,3.05047,3278.2,3278.0,0.08962981]
[1736492797467,3.05047,3278.2,3277.8,0.7972]
[1736492797672,3.05047,3278.2,3278.1,0.08962981]
[1736492797963,3.0,3278.3,3277.8,0.7972]
[1736492798468,8.4201,3278.6,3278.0,0.0075]
[1736492798607,5.37,3278.6,3278.2,0.0075]
[1736492798807,5.37,3278.6,3278.2,0.03800337]
[1736492799008,5.37,3278.6,3278.4,0.0075]
[1736492800131,8.37,3278.6,3278.5,0.09713617]
[1736492800330,3.0,3278.6,3278.5,0.09713617]
[1736492800544,3.04971,3279.0,3278.5,0.09713617]
[1736492800715,3.04954,3279.2,3278.5,0.09713617]
[1736492800909,8.43385697,3279.3,3278.5,0.09713617]
[1736492801152,3.0,3279.0,3278.5,0.09713617]
[1736492801557,3.04975,3279.0,3278.5,0.09713617]
[1736492802458,3.04975,3279.0,3278.6,0.7749]
[1736492802660,3.04975,3279.0,3278.6,0.85792512]
[1736492804216,3.04975,3279.0,3278.6,0.7749]
[1736492805816,3.04975,3279.0,3278.7,0.07460103]
[1736492806020,3.0,3279.2,3278.6,0.7749]
[1736492806214,8.39335697,3279.6,3278.7,0.0075]
[1736492806442,0.7578,3279.6,3278.9,0.0075]
[1736492806662,3.04916,3279.6,3278.9,0.0075]
[1736492806962,3.0493,3279.5,3278.9,0.0075]
[1736492807262,3.0493,3279.5,3279.0,0.07459471]
[1736492807462,3.5807857,3279.5,3279.0,0.07459471]
[1736492808734,3.0,3279.4,3279.0,0.07459471]
[1736492809159,3.0,3279.4,3278.9,0.0075]
[1736492809972,3.0,3279.4,3279.0,0.06905804]
[1736492811272,3.5314857,3279.5,3279.0,0.06905804]
[1736492811446,3.80865,3279.4,3279.0,0.06905804]
[1736492812271,3.80865,3279.4,3279.1,0.06664852]
[1736492812571,0.7593,3279.4,3279.1,0.06664852]
[1736492812774,3.0,3279.5,3278.9,0.0075]
[1736492812954,3.0,3279.5,3279.2,0.064239]
[1736492813162,6.04927,3279.5,3278.9,0.0075]
[1736492813578,6.04927,3279.5,3279.0,0.06198123]
[1736492813937,3.04935,3279.4,3279.0,0.06198123]
[1736492815978,3.04935,3279.4,3278.9,0.0075]
[1736492817081,3.04935,3279.4,3279.0,0.05774237]
[1736492818166,3.0,3279.5,3279.0,0.05774237]
[1736492818879,2.26555697,3279.3,3279.0,0.05774237]
[1736492819077,6.04961,3279.1,3279.0,0.05774237]
[1736492819275,3.0,3279.0,3278.6,0.0075]
[1736492819440,6.04971,3279.0,3278.6,0.0075]
[1736492819635,6.04971,3279.0,3278.7,0.05373364]
[1736492820378,3.04989,3278.8,3278.7,0.05373364]
[1736492820783,3.04989,3278.8,3278.3,0.9744]
[1736492821367,3.04989,3278.8,3278.4,0.05219939]
[1736492821685,3.04989,3278.8,3278.3,0.9744]
[1736492822180,3.04989,3278.8,3278.4,0.05219939]
[1736492823804,3.0,3278.5,3278.4,0.05219939]
[1736492823949,3.05027,3278.4,3278.0,0.7732]
[1736492824156,5.31582697,3278.4,3277.8,0.7657]
[1736492824453,2.26555697,3278.4,3277.9,0.0075]
[1736492824705,3.05018,3278.5,3277.9,0.0075]
[1736492825009,3.0,3278.6,3278.1,0.0075]
[1736492825354,3.0,3278.6,3278.0,0.8029]
[1736492825557,1.0635557,3278.5,3278.2,0.05229948]
[1736492825871,1.0635557,3278.5,3277.9,0.0075]
[1736492826287,0.7919,3278.3,3277.8,0.7754]
[1736492826488,3.05054,3278.2,3277.8,0.7754]
[1736492827316,3.05054,3278.2,3277.9,0.05244337]
[1736492827814,3.05054,3278.2,3277.8,0.7754]
[1736492828807,3.05054,3278.2,3277.6,0.217]
[1736492828808,3.7919,3278.3,3277.6,1.0236]
[1736492829019,3.05063,3278.1,3277.6,1.0236]
[1736492829310,3.7919,3278.3,3277.7,0.05252471]
[1736492829512,6.05036,3278.3,3277.7,0.05252471]
[1736492829678,3.05047,3278.2,3277.7,0.05252471]
[1736492830277,3.0,3278.3,3277.7,0.05252471]
[1736492830477,6.05037,3278.3,3277.7,0.05252471]
[1736492830707,6.05037,3278.3,3277.6,1.0236]
[1736492830904,3.0,3278.3,3277.6,1.0236]
[1736492831109,3.05047,3278.2,3277.6,1.0236]
[1736492831321,3.05047,3278.2,3277.7,0.05261231]
[1736492831461,3.05047,3278.2,3277.6,1.0236]
[1736492833510,3.05047,3278.2,3277.7,0.05261231]
[1736492835008,3.81504,3278.1,3277.7,0.05261231]
[1736492835181,3.05064,3278.0,3277.7,0.05261231]
[1736492838797,3.05064,3278.0,3277.6,0.8066]
[1736492838992,3.05064,3278.0,3277.7,0.05314413]
[1736492839375,3.05073,3277.9,3277.6,0.8066]
[1736492839780,3.05073,3277.9,3277.7,0.05314413]
[1736492840004,3.05073,3277.9,3277.6,0.8066]
[1736492840212,5.26555697,3278.1,3277.7,0.05314413]
[1736492840529,6.05085,3277.8,3277.4,1.0021]
[1736492840678,3.0,3277.8,3277.4,1.0021]
[1736492840880,3.0,3277.8,3277.5,0.05316291]
[1736492844639,8.42051,3278.2,3277.6,0.0075]
[1736492845211,3.0,3278.1,3277.7,0.05333187]
[1736492845416,5.37,3278.5,3277.8,0.7949]
[1736492845625,5.37,3278.5,3277.8,0.82540544]
[1736492845928,3.04998,3278.8,3278.0,0.0075]
[1736492846130,3.04998,3278.8,3278.1,0.7874]
[1736492846361,3.0,3278.7,3278.1,0.7874]
[1736492846518,3.0,3278.7,3278.2,0.05340072]
[1736492846915,3.0,3278.9,3278.2,0.05340072]
[1736492847173,3.05008,3278.6,3278.2,0.05340072]
[1736492847478,3.05008,3278.6,3278.1,0.7874]
[1736492848159,3.05026,3278.5,3278.1,0.7874]
[1736492848458,3.0,3278.4,3278.1,0.7874]
[1736492849672,0.8278,3278.5,3278.2,0.05311911]
[1736492849815,3.05036,3278.3,3278.2,0.05311911]
[1736492850133,3.05036,3278.3,3277.8,0.9854]
[1736492850461,3.05036,3278.3,3277.9,0.05317542]
[1736492850646,3.0,3278.4,3277.9,0.05317542]
[1736492850835,3.0,3278.4,3278.0,0.0075]
[1736492851331,0.605018,3278.4,3278.1,0.05316291]
[1736492851535,3.05034,3278.4,3278.1,0.05316291]
[1736492851754,3.05034,3278.4,3277.8,0.7684]
[1736492852248,3.05034,3278.4,3277.9,0.05109853]
[1736492853265,3.05064,3278.0,3277.9,0.05109853]
[1736492853447,6.05064,3278.0,3277.5,0.0075]
[1736492853652,3.05064,3278.0,3277.6,0.05109853]
[1736492854168,3.87895,3277.8,3277.6,0.05109853]
[1736492854461,3.87895,3277.8,3277.3,0.217]
[1736492854462,0.8281,3277.8,3277.4,0.0075]
[1736492854662,3.05091,3277.7,3277.4,0.0075]
[1736492855768,3.05101,3277.6,3277.3,0.217]
[1736492856652,3.87894,3277.8,3277.3,0.217]
[1736492857167,3.05084,3277.8,3277.3,0.217]
[1736492857665,3.732194,3277.8,3277.3,0.217]
[1736492857867,3.05097,3277.7,3277.3,0.217]
[1736492858426,3.05076,3277.9,3277.3,0.217]
[1736492858783,3.05019,3278.5,3277.6,0.0075]
[1736492858968,6.1985,3278.6,3278.0,0.0075]
[1736492858969,5.37,3278.6,3278.0,0.0075]
[1736492859175,3.0,3278.5,3278.0,0.0075]
[1736492859539,3.04991,3278.8,3278.1,0.05142995]
[1736492859757,3.04991,3278.8,3278.0,0.0075]
[1736492860070,3.0,3278.7,3278.1,0.05142369]
[1736492860274,3.04999,3278.7,3278.1,0.05142369]
[1736492860575,3.0,3278.5,3278.1,0.05142369]
[1736492862060,3.0,3278.5,3278.0,0.0075]
[1736492862285,5.37,3278.9,3278.1,0.27592369]
[1736492862466,8.41975,3279.0,3278.3,0.0075]
[1736492862687,3.0,3278.9,3278.4,0.05123608]
[1736492863148,3.0,3278.9,3278.3,0.0075]
[1736492863682,3.0,3278.9,3278.4,0.8087]
[1736492863887,3.0,3278.9,3278.5,0.0075]
[1736492864071,3.0,3278.9,3278.5,0.05868606]
[1736492864275,6.0498,3278.9,3278.4,0.8087]
[1736492865637,3.0,3278.9,3278.4,0.8087]
[1736492865791,3.0,3278.9,3278.5,0.05106727]
[1736492866433,0.8285,3279.2,3278.7,0.7682]
[1736492866434,5.37,3279.2,3278.7,0.7682]
[1736492866937,3.0,3279.1,3278.8,0.05101726]
[1736492867291,8.45345697,3279.0,3277.9,0.8216]
[1736492867491,3.0,3278.6,3278.0,0.217]
[1736492867736,3.86816,3278.4,3278.0,0.05101726]
[1736492868044,3.86816,3278.4,3277.9,0.8216]
[1736492868598,8.42036,3278.3,3277.9,0.8216]
[1736492869700,3.0,3278.2,3277.9,0.8216]
[1736492871544,6.05045,3278.2,3277.9,0.8216]
[1736492871716,3.0,3278.2,3277.7,0.7813]
[1736492872302,3.0,3278.2,3277.8,0.0512986]
[1736492872702,3.0,3278.2,3277.7,0.7813]
[1736492872903,3.0,3278.2,3277.9,0.0512986]
[1736492873207,5.37,3278.3,3278.0,0.0075]
[1736492874107,5.37,3278.3,3278.2,0.0075]
[1736492875749,5.37,3278.3,3277.9,0.7813]
[1736492875750,6.212026,3278.3,3277.9,0.7813]
[1736492876052,8.42037,3278.3,3277.6,0.8235]
[1736492876346,8.42037,3278.3,3277.7,0.05882989]
[1736492876737,3.0,3278.2,3277.7,0.05882989]
[1736492876916,6.05045,3278.2,3277.7,0.05882989]
[1736492877121,6.05045,3278.2,3277.7,0.0075]
[1736492877349,0.8004,3278.0,3277.8,0.05133614]
[1736492877499,6.05078,3277.9,3277.8,0.05133614]
[1736492877699,3.05103,3277.6,3277.2,0.0075]
[1736492878018,6.05084,3277.8,3277.2,0.0075]
[1736492878219,3.0,3277.8,3277.1,0.217]
[1736492878456,3.05103,3277.6,3277.1,0.217]
[1736492878766,3.05103,3277.6,3277.2,0.05142993]
[1736492879118,3.05103,3277.6,3277.1,0.0075]
[1736492879347,3.05103,3277.6,3277.3,0.05142993]
[1736492879517,3.656133,3277.6,3277.1,0.0075]
[1736492879854,3.05111,3277.5,3277.1,0.0075]
[1736492880150,3.0,3277.8,3277.2,0.05142993]
[1736492880457,3.05111,3277.5,3277.2,0.05142993]
[1736492880805,3.0,3277.4,3277.0,1.0405]
[1736492881002,3.0,3277.4,3277.3,0.05142993]
[1736492881255,3.0,3277.4,3277.0,1.0405]
[1736492881548,3.0,3277.8,3277.1,0.05142993]
[1736492881863,3.05121,3277.4,3277.1,0.05142993]
[1736492882003,3.05121,3277.4,3277.0,1.0405]
[1736492882203,3.05121,3277.4,3277.1,0.05142993]
[1736492882449,3.05121,3277.4,3277.0,1.0405]
[1736492882961,3.05121,3277.4,3277.1,0.05142993]
[1736492883256,3.05121,3277.4,3277.0,1.0405]
[1736492883550,3.05101,3277.7,3277.1,0.05142993]
[1736492883759,3.05101,3277.7,3277.2,0.0075]
[1736492884264,6.1317,3277.9,3277.1,0.05301232]
[1736492884265,5.37,3277.9,3277.1,0.05301232]
[1736492884558,5.37,3277.9,3277.5,0.0225]
[1736492884708,5.37,3277.9,3277.7,0.0225]
[1736492884911,8.42009,3278.6,3277.9,0.0075]
[1736492885109,3.05018,3278.5,3277.9,0.0075]
[1736492885424,3.0,3278.4,3277.9,0.0075]
[1736492885611,3.0,3278.4,3278.0,0.05196775]
[1736492885813,3.0,3278.5,3277.9,0.0075]
[1736492886012,3.05028,3278.4,3277.9,0.0075]
[1736492886359,3.0,3278.5,3278.0,0.05196775]
[1736492886650,2.26555697,3278.7,3278.1,0.7809]
[1736492886858,3.0,3278.7,3278.1,0.7809]
[1736492887024,5.37,3278.9,3278.2,0.05196775]
[1736492887229,5.37,3278.9,3278.3,0.015]
[1736492887665,8.41973,3279.0,3278.5,0.0075]
[1736492887950,3.0,3278.9,3278.6,0.05163634]
[1736492889859,3.0,3278.9,3278.3,0.0075]
[1736492890349,3.0,3278.9,3278.5,0.0075]
[1736492890924,3.0,3278.9,3278.6,0.05163634]
[1736492891248,3.0,3278.9,3278.6,0.7523]
[1736492891459,3.0,3278.9,3278.7,0.05163634]
[1736492891673,3.0,3278.9,3278.6,0.7523]
[1736492891962,3.0,3278.9,3278.7,0.05163634]
[1736492892467,6.04988,3278.9,3278.5,0.0075]
[1736492892635,6.04988,3278.9,3278.6,0.05163634]
[1736492893038,3.0,3278.9,3278.5,0.0075]
[1736492893364,5.37,3279.3,3278.7,0.0075]
[1736492893726,3.0,3279.2,3278.8,0.05148005]
[1736492894025,8.4194,3279.4,3278.6,0.217]
[1736492894228,8.4194,3279.4,3278.9,0.8279]
[1736492894229,5.37,3279.4,3278.9,0.8279]
[1736492894638,5.37,3279.4,3279.0,0.05129878]
[1736492895206,5.37,3279.4,3279.1,0.0075]
[1736492895555,5.37,3279.4,3279.0,0.0075]
[1736492895750,3.0,3279.6,3279.2,0.05129878]
[1736492895954,3.0,3279.6,3278.9,0.217]
[1736492895955,3.0,3279.4,3278.9,0.217]
[1736492896263,3.0,3279.4,3279.0,0.0075]
[1736492896879,3.0,3279.4,3279.2,0.0075]
[1736492897502,3.0,3279.4,3279.3,0.05018594]
[1736492897956,3.0,3279.4,3279.0,0.0075]
[1736492898280,6.04935,3279.4,3279.1,0.05018594]
[1736492898438,6.04935,3279.4,3279.0,0.0075]
[1736492898439,7.191285,3279.4,3279.0,0.0075]
[1736492898778,7.191285,3279.4,3279.1,0.05018594]
[1736492899187,7.191285,3279.4,3279.0,0.0075]
[1736492899595,7.191285,3279.4,3279.1,0.05018594]
[1736492899881,4.141935,3279.4,3278.9,0.0075]
[1736492900193,4.141935,3279.4,3278.8,0.217]
[1736492900194,3.0,3279.4,3279.1,0.0075]
[1736492900881,3.0,3279.4,3279.2,0.05018594]
[1736492902047,3.0,3279.4,3279.1,0.0075]
[1736492902243,3.0,3279.4,3279.2,0.05018594]
[1736492902483,3.0,3279.4,3279.1,0.0075]
[1736492902681,3.0,3279.4,3279.2,0.05018594]
[1736492902919,3.0,3279.4,3279.1,0.0075]
[1736492903137,0.7768,3279.2,3278.1,0.8052]
[1736492903278,2.26555697,3279.3,3278.3,1.05269851]
[1736492903482,3.04943,3279.3,3278.5,0.015]
[1736492903696,3.04943,3279.3,3278.5,0.04549849]
[1736492903990,3.7768,3279.4,3278.6,0.0075]
[1736492905314,3.7768,3279.4,3278.8,0.0225]
[1736492905519,5.37,3279.5,3278.8,0.05299564]
[1736492905715,5.37,3279.5,3278.8,0.4438312]
[1736492906016,5.37,3279.5,3278.8,0.41333556]
[1736492906922,8.41886,3280.0,3279.2,0.0075]
[1736492907086,8.41886,3280.0,3279.2,0.015]
[1736492907285,3.0,3279.9,3279.2,0.04549155]
[1736492908687,3.0,3279.9,3279.3,0.07227978]
[1736492910100,3.0,3279.9,3279.3,0.10277013]
[1736492910424,3.0,3279.9,3279.3,0.07227978]
[1736492912520,4.141879,3279.9,3279.3,0.05727978]
[1736492912828,0.8152,3279.7,3279.3,0.04977978]
[1736492913028,5.26555697,3279.6,3278.8,0.7696]
[1736492913185,3.04945,3279.3,3278.7,0.217]
[1736492913391,0.304945,3279.2,3278.9,0.04771133]
[1736492913586,0.304945,3279.2,3278.8,0.0075]
[1736492913827,0.304945,3279.2,3279.0,0.04771133]
[1736492914037,6.0493,3279.5,3278.7,0.217]
[1736492914038,3.04961,3279.1,3278.7,0.217]
[1736492914325,3.04961,3279.1,3278.8,0.0479423]
[1736492914944,3.04961,3279.1,3278.7,0.217]
[1736492917038,2.26555697,3279.0,3278.3,0.7927]
[1736492917250,8.31555697,3278.7,3278.2,0.217]
[1736492917389,0.8315557,3278.6,3278.2,0.217]
[1736492917591,0.8315557,3278.6,3278.3,0.04812962]
[1736492918028,0.8315557,3278.6,3277.9,1.0097]
[1736492918029,3.8817157,3278.6,3277.9,1.0097]
[1736492918187,3.05028,3278.4,3277.9,0.7927]
[1736492918391,3.05028,3278.4,3278.0,0.05571705]
[1736492919427,3.05054,3278.1,3278.0,0.04821705]
[1736492919793,2.26555697,3278.1,3277.6,1.041]
[1736492919991,3.05075,3277.9,3277.6,0.217]
[1736492920447,3.05075,3277.9,3277.3,0.7681]
[1736492920448,3.05075,3277.9,3277.4,0.0075]
[1736492920754,3.05075,3277.9,3277.5,0.04821705]
[1736492923392,2.26555697,3278.1,3277.5,0.04821705]
[1736492923635,8.31610697,3278.1,3277.5,0.04821705]
[1736492923796,8.31610697,3278.1,3277.4,0.0075]
[1736492923996,8.31610697,3278.1,3277.6,0.04916001]
[1736492924192,3.9097007,3278.0,3277.4,0.0075]
[1736492924410,3.0,3278.0,3277.7,0.04916001]
[1736492924610,3.0,3278.0,3277.4,0.0075]
[1736492925013,3.0,3278.0,3277.5,0.04916001]
[1736492926443,6.05069,3278.0,3277.5,0.04916001]
[1736492926645,5.32198697,3279.9,3278.4,1.44200996]
[1736492926860,5.31578697,3278.5,3278.4,1.44200996]
[1736492928654,5.73719403,3278.5,3278.4,1.44200996]
[1736492928854,8.73719403,3278.5,3278.4,1.44200996]
[1736492929307,9.34169476,3278.5,3278.4,1.44200996]
[1736492929762,10.13229476,3278.5,3278.4,1.44200996]
[1736492929911,11.14552424,3278.5,3278.4,1.44200996]
[1736492932059,16.51552424,3278.5,3278.4,1.44200996]
[1736492935338,16.51552424,3278.5,3278.4,1.44000996]
[1736492938592,16.09411718,3278.5,3278.4,9.96e-06]
[1736492938887,3.05088,3277.8,3277.6,0.8123]
[1736492939091,3.05091,3277.7,3277.6,0.8123]
[1736492939666,6.05076,3277.9,3277.6,0.8123]
[1736492941495,3.0,3277.9,3277.6,0.8123]
[1736492941649,3.0,3277.9,3277.7,0.04805971]
[1736492941975,3.0,3277.9,3277.6,0.8123]
[1736492942574,3.0,3277.9,3277.7,0.04805971]
[1736492942757,6.05082,3277.8,3277.7,0.04805971]
[1736492943093,6.05082,3277.8,3277.6,0.8123]
[1736492944896,3.0,3277.8,3277.6,0.8123]
[1736492950720,3.0,3277.8,3277.7,0.04818459]
[1736492950881,3.0,3277.8,3277.6,0.8123]
[1736492951082,5.37,3278.0,3277.6,0.8123]
[1736492951284,5.37,3278.0,3277.7,0.0075]
[1736492951517,5.37,3278.0,3277.8,0.7738]
[1736492951801,5.37,3278.0,3277.8,0.82198459]
[1736492952567,5.37,3278.0,3277.8,0.7738]
[1736492952819,5.37,3278.0,3277.9,0.04815962]
[1736492952997,5.37,3278.0,3277.8,0.7738]
[1736492953396,5.37,3278.0,3277.9,0.04815962]
[1736492953582,5.37,3278.0,3277.8,0.7738]
[1736492953787,5.37,3278.0,3277.9,0.04815962]
[1736492953974,5.37,3278.0,3277.8,0.7738]
[1736492954172,5.37,3278.0,3277.9,0.04815962]
[1736492954396,5.37,3278.0,3277.8,0.7738]
[1736492954801,5.37,3278.0,3277.9,0.04815962]
[1736492955001,5.37,3278.0,3277.8,0.7738]
[1736492955337,5.37,3278.0,3277.9,0.0075]
[1736492955609,3.0,3278.3,3277.9,0.0075]
[1736492955610,3.0,3278.3,3278.1,0.0075]
[1736492955910,3.0,3278.8,3278.1,0.0075]
[1736492956212,3.0,3278.8,3278.3,0.0075]
[1736492956409,5.26555697,3278.9,3278.4,0.7738]
[1736492956581,3.04998,3278.8,3278.4,0.7738]
[1736492958813,5.26555697,3278.9,3278.4,0.7738]
[1736492959008,3.0,3278.6,3278.4,0.7738]
[1736492960609,3.05008,3278.6,3278.1,0.217]
[1736492960819,4.21520623,3278.5,3277.5,0.7591]
[1736492961001,3.05065,3278.0,3277.5,0.7591]
[1736492961200,3.05065,3278.0,3277.5,0.9761]
[1736492961715,3.05065,3278.0,3277.6,0.0075]